bitfinex-derivatives/quotes_ETHF0:USTF0_20251031
["timestamp","ask_amount","ask_price","bid_price","bid_amount"]
[1761928545849,0.219,3861.5,3861.4,0.231]
[1761928546037,0.83145313,3861.5,3861.4,0.231]
[1761928547049,0.8340272,3861.5,3861.4,0.231]
[1761928547442,0.219,3861.3,3860.2,3.2078]
[1761928547748,3.2078,3860.8,3860.1,3.772]
[1761928548050,0.219,3860.2,3860.1,9.107]
[1761928548748,0.219,3860.1,3860.0,0.00244197]
[1761928550846,0.8301504,3860.1,3860.0,0.00244197]
[1761928551952,0.219,3860.1,3860.0,0.00244197]
[1761928552152,3.2078,3860.4,3860.0,0.23344197]
[1761928552454,0.61167424,3860.3,3860.0,0.23344197]
[1761928552746,0.61167424,3860.2,3860.0,0.23344197]
[1761928552952,3.2078,3860.4,3860.1,0.231]
[1761928553147,0.61163394,3860.3,3860.1,0.231]
[1761928553348,0.83063394,3860.2,3860.0,0.00244197]
[1761928553551,0.219,3860.1,3860.0,0.00244197]
[1761928557571,0.83085894,3860.1,3860.0,0.00244197]
[1761928564974,0.61185894,3860.1,3860.0,0.23344197]
[1761928565362,0.61185894,3860.3,3860.0,0.23344197]
[1761928565777,0.61185894,3860.3,3860.2,0.231]
[1761928566075,0.219,3860.1,3860.0,0.00244197]
[1761928566669,0.83224873,3860.1,3860.0,9.10644197]
[1761928567188,0.61324873,3860.1,3860.0,9.33744197]
[1761928567875,0.61324873,3860.1,3860.0,9.47134197]
[1761928568177,3.2078,3860.4,3860.0,9.47134197]
[1761928568376,3.2078,3860.4,3860.3,0.231]
[1761928568571,3.82141834,3860.4,3860.3,0.231]
[1761928569476,0.219,3860.1,3860.0,9.10644197]
[1761928569674,0.219,3860.1,3860.0,9.33744197]
[1761928569878,0.83261834,3860.1,3860.0,0.23344197]
[1761928570181,0.83261834,3860.1,3860.0,9.33744197]
[1761928570573,0.61361834,3860.1,3860.0,0.36734197]
[1761928570768,0.61361834,3860.1,3860.0,9.47134197]
[1761928572285,3.2078,3860.8,3860.7,0.231]
[1761928572484,3.82211151,3860.8,3860.7,9.335]
[1761928573184,0.61431151,3860.8,3860.7,9.335]
[1761928574578,0.84501151,3860.8,3860.7,0.231]
[1761928574782,0.84501151,3860.8,3860.0,0.60286197]
[1761928574983,0.61431151,3860.7,3860.2,0.4665]
[1761928575184,0.61431151,3860.6,3860.5,0.2249]
[1761928579088,0.61431151,3860.6,3860.5,0.3588]
[1761928580285,3.2078,3861.2,3861.1,0.2181]
[1761928580489,3.81835082,3861.2,3861.1,0.2181]
[1761928580692,4.04135082,3861.2,3861.1,0.2181]
[1761928580891,4.04135082,3861.2,3860.9,9.102]
[1761928581190,0.61055082,3861.1,3861.0,0.2181]
[1761928581380,0.61055082,3861.1,3861.0,0.3542]
[1761928581577,0.61075238,3861.4,3861.3,0.2181]
[1761928585588,0.83375238,3861.4,3860.7,44.0078]
[1761928585791,0.223,3860.9,3860.8,9.101]
[1761928585991,0.223,3860.9,3860.8,9.3191]
[1761928586387,0.223,3860.8,3860.7,3.2078]
[1761928586594,0.223,3860.8,3860.7,9.101]
[1761928587481,0.223,3860.8,3860.3,3.2078]
[1761928587682,0.223,3860.1,3860.0,0.00244197]
[1761928587886,0.223,3859.1,3859.0,3.2078]
[1761928588086,0.223,3859.1,3859.0,9.1]
[1761928588391,0.223,3859.1,3858.6,3.2078]
[1761928588592,0.223,3858.7,3858.6,3.2078]
[1761928588892,0.00232561,3858.7,3858.6,9.67705842]
[1761928589791,0.00232561,3858.7,3858.6,3.42905842]
[1761928589989,0.00232561,3858.7,3858.6,9.64795842]
[1761928590189,0.22532561,3858.7,3858.6,3.21095842]
[1761928590389,0.00232561,3858.7,3858.6,12.52905842]
[1761928591391,0.00232561,3858.7,3858.6,9.32225842]
[1761928592688,0.00232561,3858.7,3858.6,0.22125842]
[1761928593088,0.00232561,3858.7,3858.6,9.32225842]
[1761928593889,2.561e-05,3858.7,3858.6,9.32225842]
[1761928595602,2.561e-05,3858.7,3858.6,17.32225842]
[1761928595795,2.561e-05,3858.7,3858.6,9.78895842]
[1761928597300,3.2078,3860.1,3860.0,0.2181]
[1761928597498,3.81661539,3860.1,3860.0,9.3201]
[1761928598004,4.03961539,3860.1,3860.0,9.102]
[1761928598195,4.04160592,3860.1,3860.0,9.102]
[1761928598696,0.83380592,3860.1,3860.0,9.102]
[1761928598901,0.00199053,3860.1,3860.0,9.3201]
[1761928599205,0.00199053,3860.1,3860.0,9.4623]
[1761928600206,0.00199053,3860.1,3860.0,9.92882]
[1761928601299,0.66778,3860.7,3860.6,0.68455]
[1761928601499,0.66778,3860.7,3860.6,12.99435]
[1761928601691,3.2078,3861.6,3861.5,0.2181]
[1761928601890,3.2078,3862.1,3861.5,9.3201]
[1761928602092,0.60856445,3861.9,3861.8,0.2181]
[1761928602291,0.00243124,3862.0,3861.8,9.3201]
[1761928603693,0.13333124,3862.0,3861.8,9.3201]
[1761928603897,0.2232,3861.9,3861.8,9.102]
[1761928604494,0.13333124,3862.0,3861.8,9.3166]
[1761928604902,0.00243124,3862.0,3861.9,0.2146]
[1761928609008,0.00243124,3862.0,3861.9,9.3136]
[1761928609201,0.00243124,3862.0,3861.9,0.2146]
[1761928609606,0.00243124,3862.0,3861.9,9.3126]
[1761928609905,0.22563124,3862.0,3861.9,9.3126]
[1761928611605,0.00243124,3862.0,3861.9,9.3126]
[1761928613302,0.35653124,3862.0,3861.9,0.2146]
[1761928613503,0.35653124,3862.0,3861.9,9.3116]
[1761928614406,0.22563124,3862.0,3861.9,9.3116]
[1761928614611,0.00243124,3862.0,3861.9,9.7779]
[1761928614807,0.00243124,3862.0,3861.9,9.3116]
[1761928615106,0.00243124,3862.0,3861.9,9.7779]
[1761928618313,3.2078,3862.9,3862.5,0.1321]
[1761928618500,3.2078,3862.9,3862.6,9.096]
[1761928619297,0.2232,3862.7,3862.1,0.46627]
[1761928619499,0.2232,3862.7,3862.2,6.695]
[1761928619709,0.2232,3862.7,3862.3,0.46625]
[1761928619898,0.2232,3862.7,3862.2,6.695]
[1761928621012,0.2232,3862.7,3862.3,0.46625]
[1761928621514,0.2232,3862.7,3862.4,9.095]
[1761928622107,0.3541,3862.5,3862.0,0.1321]
[1761928622308,0.2232,3862.2,3862.1,9.095]
[1761928622609,0.2232,3861.6,3861.5,0.0033405]
[1761928623005,0.2232,3861.6,3861.5,9.0983405]
[1761928623214,0.2232,3861.6,3861.5,0.0033405]
[1761928623407,0.3541,3861.0,3860.9,3.2078]
[1761928623605,0.3541,3861.0,3860.6,3.931]
[1761928623910,3.431,3861.3,3861.2,0.2146]
[1761928624108,3.2078,3861.3,3861.2,8.9976]
[1761928624514,3.2078,3861.3,3861.2,9.46398]
[1761928624805,0.1309,3862.0,3861.2,11.99408348]
[1761928625009,0.1309,3862.5,3861.9,0.2146]
[1761928625209,0.1309,3862.5,3862.3,0.2146]
[1761928625405,0.2232,3862.4,3862.2,7.405]
[1761928625604,0.2232,3862.3,3862.2,7.405]
[1761928625805,0.2232,3862.3,3862.2,9.094]
[1761928626205,3.2078,3862.6,3862.5,0.2146]
[1761928626406,3.81593748,3862.6,3862.5,0.2146]
[1761928626607,3.81593748,3862.6,3862.2,9.094]
[1761928626608,0.2232,3862.3,3862.2,9.094]
[1761928626813,0.1309,3862.5,3862.2,9.3086]
[1761928627414,0.6090091,3862.4,3862.2,9.3086]
[1761928627711,0.1309,3862.5,3862.2,9.3086]
[1761928627918,0.60900637,3862.4,3862.3,0.2146]
[1761928628212,0.83220637,3862.4,3862.3,9.094]
[1761928630016,0.83220637,3862.4,3861.6,3.2078]
[1761928630207,3.2078,3862.2,3861.7,4.858]
[1761928630411,0.1309,3862.0,3861.6,3.2078]
[1761928630615,0.2232,3861.7,3861.1,3.2078]
[1761928630916,0.60900637,3861.9,3861.1,3.2078]
[1761928630917,0.2232,3861.4,3861.1,3.2078]
[1761928631215,0.2232,3861.4,3860.5,0.0616]
[1761928631216,0.2232,3861.3,3861.2,6.41028348]
[1761928631413,0.83381961,3861.3,3861.2,6.41028348]
[1761928632117,0.83381961,3861.3,3861.2,6.62488348]
[1761928632318,0.83381961,3861.3,3861.2,6.41028348]
[1761928632819,0.61061961,3861.3,3861.2,6.62488348]
[1761928633318,0.83381961,3861.3,3861.2,6.41028348]
[1761928634415,0.83381961,3861.3,3861.2,0.00328348]
[1761928636110,0.3571,3861.0,3860.9,0.44657043]
[1761928636414,0.2286,3860.4,3860.3,0.51394]
[1761928636607,3.2078,3861.0,3860.9,0.2323]
[1761928636806,3.8149375,3861.0,3860.9,0.2323]
[1761928637316,0.6071375,3861.0,3860.9,0.2323]
[1761928637524,4.59546535,3861.9,3861.4,0.2323]
[1761928637818,0.60703365,3861.8,3861.7,0.2183]
[1761928638021,0.84163365,3861.8,3861.0,0.1338]
[1761928638323,0.60703365,3861.7,3861.0,0.60311743]
[1761928638520,0.60685121,3861.6,3861.0,0.13670743]
[1761928638713,0.60685121,3861.5,3861.0,0.13670743]
[1761928638914,0.60685121,3861.4,3861.3,0.2183]
[1761928639113,0.60685121,3861.8,3861.3,0.2183]
[1761928642219,0.2346,3861.4,3861.3,0.2183]
[1761928642425,0.84145121,3861.4,3861.0,0.13670743]
[1761928642625,0.60685121,3861.3,3861.0,0.13670743]
[1761928642922,0.1331,3861.5,3861.0,0.13670743]
[1761928643121,0.2346,3861.1,3861.0,0.00290743]
[1761928645726,3.4424,3861.1,3861.0,0.00290743]
[1761928646027,4.04916824,3861.1,3861.0,0.00290743]
[1761928646726,4.04908177,3861.1,3861.0,0.00290743]
[1761928648026,0.2346,3860.4,3860.0,8.0958]
[1761928648926,0.2346,3860.4,3860.3,0.51631924]
[1761928649118,0.84115269,3860.4,3860.3,0.51631924]
[1761928654430,0.84115269,3860.4,3858.5,0.1411]
[1761928654726,3.2078,3859.7,3859.6,0.2183]
[1761928655223,3.2078,3860.5,3860.4,0.2183]
[1761928655420,3.81402481,3860.5,3860.4,0.2183]
[1761928655620,3.81632926,3860.5,3860.4,0.22043896]
[1761928655816,0.60852926,3860.5,3860.4,0.22043896]
[1761928656022,0.00230445,3860.5,3860.4,9.78392896]
[1761928656725,0.00230445,3860.5,3860.4,9.31743896]
[1761928658931,3.2078,3861.7,3861.6,0.2183]
[1761928659124,3.8144954,3861.7,3861.6,0.2183]
[1761928659830,4.0509182,3861.7,3861.1,12.0038]
[1761928660032,0.6066954,3861.6,3861.1,12.0038]
[1761928660532,0.1331,3861.5,3861.1,8.796]
[1761928660834,0.6066954,3861.4,3860.9,9.1]
[1761928662332,0.6066954,3861.4,3860.9,9.56643]
[1761928662526,0.6066954,3861.4,3861.0,0.1411]
[1761928663027,0.6066954,3861.4,3861.3,0.2183]
[1761928663428,0.6066954,3861.6,3861.3,0.2183]
[1761928663632,3.2096228,3861.7,3861.6,0.2338]
[1761928663824,3.817779,3861.7,3861.6,0.2338]
[1761928664025,0.609979,3861.7,3861.6,0.2338]
[1761928664224,0.609979,3861.7,3861.6,0.70015]
[1761928664435,0.0018228,3861.7,3861.6,0.70015]
[1761928665430,3.2078,3862.5,3862.4,0.2338]
[1761928665732,3.81589723,3862.5,3862.4,0.2338]
[1761928666526,4.05447026,3862.5,3862.4,0.2338]
[1761928666729,4.18447026,3862.5,3862.3,9.1]
[1761928666927,0.60809723,3862.4,3862.3,9.3338]
[1761928667328,0.84429723,3862.4,3862.3,9.3338]
[1761928667934,0.84429723,3862.4,3862.3,9.1]
[1761928668136,0.84429723,3862.4,3861.6,0.46634]
[1761928668434,0.60809723,3862.3,3861.7,9.097]
[1761928668633,3.34017303,3862.5,3861.7,9.097]
[1761928668836,0.60723567,3862.4,3861.7,9.097]
[1761928669037,0.60723567,3862.3,3861.7,9.097]
[1761928669237,3.34017303,3862.5,3861.5,3.3414]
[1761928669529,0.6070838,3862.4,3861.6,9.095]
[1761928669724,0.6070838,3862.3,3861.7,0.46633]
[1761928669930,3.34017303,3862.5,3861.6,9.095]
[1761928670130,0.6072201,3862.4,3861.6,9.095]
[1761928670339,0.6072201,3862.3,3861.6,0.46634]
[1761928670529,3.34017303,3862.5,3861.7,9.095]
[1761928670729,0.60712668,3862.4,3861.7,9.095]
[1761928670924,3.2078,3861.9,3861.5,0.1336]
[1761928671133,0.60708557,3861.8,3860.7,3.2078]
[1761928671333,0.60708557,3861.7,3860.8,9.095]
[1761928671637,0.60708557,3861.6,3861.0,0.0463]
[1761928671838,3.2078,3861.9,3861.0,0.0463]
[1761928672034,0.60703877,3861.8,3861.0,0.0463]
[1761928672227,0.60703877,3861.7,3860.8,9.095]
[1761928672427,3.2078,3861.1,3861.0,0.2338]
[1761928672636,0.3662,3860.5,3860.4,0.00213896]
[1761928672831,3.574,3860.5,3860.4,0.00213896]
[1761928673038,3.3378,3861.0,3860.4,0.23593896]
[1761928673235,0.60682341,3860.9,3860.5,0.1336]
[1761928673436,0.60682341,3860.8,3860.7,0.2338]
[1761928673932,0.3662,3860.5,3860.4,0.00213896]
[1761928674645,0.97289005,3860.5,3860.4,0.00213896]
[1761928676438,3.2078,3860.6,3860.5,0.2338]
[1761928676740,0.3662,3860.5,3860.4,0.00213896]
[1761928676929,3.2078,3860.6,3860.4,0.00213896]
[1761928677135,3.2078,3860.6,3860.5,0.2338]
[1761928678039,3.2078,3860.6,3860.4,0.00213896]
[1761928679947,3.2078,3860.6,3860.5,0.3674]
[1761928680938,0.2362,3860.5,3860.4,0.00213896]
[1761928681349,3.2078,3860.6,3860.4,0.23593896]
[1761928681543,3.2078,3860.6,3860.5,0.2338]
[1761928682541,0.3662,3860.5,3860.4,0.00213896]
[1761928683143,0.97317557,3860.5,3859.0,3.2078]
[1761928683343,3.2078,3859.3,3858.6,3.2078]
[1761928683537,3.2078,3859.4,3858.6,3.2078]
[1761928683734,3.2078,3859.8,3858.8,0.46668]
[1761928683943,0.60681049,3859.7,3858.8,0.46668]
[1761928684143,0.60681049,3859.7,3858.6,3.2078]
[1761928684144,3.2078,3859.8,3858.9,0.46668]
[1761928684346,3.2078,3859.8,3859.7,0.2338]
[1761928684541,4.05067707,3859.8,3859.0,0.1336]
[1761928684743,3.44624683,3859.8,3859.7,0.00293382]
[1761928685042,4.0529185,3859.8,3859.7,0.00293382]
[1761928685248,3.44624683,3859.8,3859.7,0.00293382]
[1761928685649,3.21004683,3859.8,3859.7,0.23673382]
[1761928685946,0.00224683,3859.8,3859.7,0.23673382]
[1761928686149,0.00224683,3859.8,3859.7,8.23673382]
[1761928687149,3.2078,3860.6,3860.5,0.2338]
[1761928687347,3.444,3860.6,3859.7,0.00293382]
[1761928687539,3.444,3860.6,3860.1,8.82553]
[1761928687846,3.2078,3860.6,3860.5,0.2338]
[1761928688046,3.21022756,3860.6,3860.5,0.2338]
[1761928688348,3.21022756,3860.6,3860.1,8.359]
[1761928689247,0.2362,3860.2,3859.7,0.00293382]
[1761928689446,0.2362,3860.2,3859.8,9.128]
[1761928689646,0.2362,3860.2,3859.8,9.59457]
[1761928689849,0.2362,3860.2,3859.8,9.128]
[1761928690740,3.21022756,3860.6,3859.8,9.128]
[1761928691140,3.21022756,3860.6,3860.0,0.46654]
[1761928691447,3.21022756,3860.6,3859.8,9.59456]
[1761928691646,0.13,3860.5,3859.8,9.128]
[1761928691847,0.2362,3860.0,3859.9,9.129]
[1761928692343,0.2362,3860.0,3859.9,9.59556]
[1761928692539,0.2362,3860.0,3859.7,0.00293382]
[1761928692848,0.2362,3859.9,3859.8,6.034]
[1761928695148,3.2078,3860.2,3859.9,0.46655]
[1761928695446,3.2078,3860.2,3859.8,6.034]
[1761928696435,3.2078,3860.2,3860.1,0.2186]
[1761928696840,3.2078,3860.2,3859.8,6.034]
[1761928697144,3.2078,3860.2,3859.9,0.46656]
[1761928697339,3.2078,3860.2,3860.1,0.2186]
[1761928697547,3.2078,3860.2,3859.8,6.034]
[1761928698245,0.00242756,3860.6,3860.5,0.3647]
[1761928698543,0.60930567,3860.6,3860.4,9.125]
[1761928698735,0.60686188,3860.5,3860.4,9.125]
[1761928698941,0.60686188,3860.5,3860.4,9.3577]
[1761928699141,0.23182756,3860.6,3860.4,9.125]
[1761928699340,0.60719691,3860.5,3860.4,9.125]
[1761928699945,0.60719691,3860.5,3860.4,9.3577]
[1761928700246,3.2078,3861.2,3860.8,0.46645]
[1761928700443,3.2078,3861.2,3861.1,0.2327]
[1761928700748,3.81552907,3861.2,3860.5,0.132]
[1761928701043,0.2294,3860.7,3859.9,3.2078]
[1761928701246,0.60772907,3860.6,3860.2,0.46652]
[1761928701434,0.1298,3861.0,3860.2,0.46652]
[1761928701639,0.60776611,3860.9,3860.4,0.4665]
[1761928701838,0.60776611,3860.8,3860.1,6.63452]
[1761928702047,0.60776611,3860.7,3860.2,0.46652]
[1761928702250,0.60776611,3860.6,3860.3,0.46651]
[1761928702445,0.1298,3861.0,3860.6,0.46648]
[1761928702648,0.60778323,3860.9,3860.8,0.2327]
[1761928702844,0.60778323,3860.9,3860.8,9.82415]
[1761928703150,0.00249153,3861.2,3861.1,0.69911]
[1761928703552,0.6101835,3861.2,3861.1,0.69911]
[1761928703853,0.6101835,3861.2,3861.1,0.2327]
[1761928704436,4.0473835,3861.2,3860.8,9.131]
[1761928704643,0.2294,3860.9,3860.8,9.131]
[1761928705650,3.21029153,3861.2,3860.8,9.131]
[1761928705843,0.60732369,3861.1,3860.8,9.131]
[1761928706042,3.21029153,3861.2,3860.8,9.131]
[1761928706343,0.60734759,3861.1,3860.8,9.131]
[1761928706549,3.21029153,3861.2,3860.8,9.131]
[1761928706848,0.6072594,3861.1,3861.0,0.2327]
[1761928707250,3.21029153,3861.2,3861.1,0.2327]
[1761928707450,3.81767242,3861.2,3861.1,0.2327]
[1761928707649,0.60987242,3861.2,3861.1,0.2327]
[1761928707850,0.00249153,3861.2,3861.1,0.2327]
[1761928708249,0.00249153,3861.2,3861.1,3.90691]
[1761928708439,0.00249153,3861.2,3861.1,3.4405]
[1761928708645,0.00249153,3861.2,3861.1,3.90691]
[1761928709748,3.3376,3862.0,3861.5,0.132]
[1761928709948,0.60662337,3861.9,3861.7,0.46634]
[1761928710153,0.60662337,3861.9,3861.6,9.126]
[1761928710154,3.2078,3862.0,3861.9,0.2327]
[1761928710450,3.8143969,3862.0,3861.9,0.2327]
[1761928710649,3.8143969,3862.0,3861.6,9.59235]
[1761928710854,0.6065969,3861.9,3861.6,9.59235]
[1761928711059,0.6065969,3861.8,3861.7,0.2327]
[1761928711951,0.6065969,3861.8,3861.7,0.69904]
[1761928712249,0.6065969,3861.8,3861.7,0.2327]
[1761928712445,3.20967042,3862.0,3861.7,0.2327]
[1761928712643,0.60627405,3861.9,3861.6,9.126]
[1761928712847,3.33947042,3862.0,3861.6,9.126]
[1761928713045,0.60626965,3861.9,3861.6,9.126]
[1761928713354,3.33947042,3862.0,3861.6,9.126]
[1761928713555,0.60620331,3861.9,3861.6,9.126]
[1761928713756,3.33947042,3862.0,3861.6,9.126]
[1761928713950,0.60624304,3861.9,3861.6,9.126]
[1761928714151,3.33947042,3862.0,3861.6,9.126]
[1761928714352,0.60623846,3861.9,3861.6,9.126]
[1761928714559,3.20967042,3862.0,3861.9,0.2327]
[1761928714749,3.81596889,3862.0,3861.9,0.2327]
[1761928715256,4.04536889,3862.0,3861.6,9.59235]
[1761928715457,0.60629847,3861.9,3861.6,9.59235]
[1761928716158,0.60629847,3861.9,3861.8,0.2327]
[1761928716660,0.00187042,3862.0,3861.9,0.2327]
[1761928716960,0.00187042,3862.0,3861.9,0.69902]
[1761928717561,0.00187042,3862.0,3861.9,0.2327]
[1761928717761,0.00187042,3862.0,3861.9,9.82902]
[1761928720965,0.00187042,3862.0,3861.9,0.69902]
[1761928721165,0.00187042,3862.0,3861.9,9.82602]
[1761928722566,0.00107042,3862.0,3861.9,9.82602]
[1761928723764,0.36337042,3862.0,3861.9,9.3517]
[1761928724469,0.00107042,3862.0,3861.9,9.81802]
[1761928726567,0.00107042,3862.0,3861.9,13.02582]
[1761928727369,3.2078,3862.8,3862.7,0.2358]
[1761928727558,3.81310242,3862.8,3862.7,9.3478]
[1761928727765,4.04200242,3862.8,3862.7,9.3478]
[1761928728069,3.81310242,3862.8,3862.7,9.3478]
[1761928728265,3.81630892,3862.8,3862.7,9.81679588]
[1761928728465,3.81630892,3862.8,3862.7,9.35057588]
[1761928730074,0.0032065,3862.8,3862.7,9.35057588]
[1761928730472,0.0032065,3862.8,3862.7,9.81679588]
[1761928730768,3.3407,3864.5,3864.4,0.2358]
[1761928730968,0.60554272,3864.5,3864.4,0.2358]
[1761928731360,0.025,3864.7,3864.6,0.2358]
[1761928731765,0.64110661,3864.7,3864.6,0.2358]
[1761928732368,3.2078,3865.6,3865.0,0.132]
[1761928732676,3.2078,3866.4,3865.5,0.3678]
[1761928732875,0.61229887,3865.9,3865.6,8.298]
[1761928733075,3.2078,3866.4,3865.6,8.298]
[1761928733275,3.2078,3866.4,3865.9,0.2358]
[1761928733479,0.61124203,3866.3,3866.0,9.112]
[1761928733775,0.2289,3866.1,3866.0,9.112]
[1761928733975,0.84014203,3866.1,3866.0,9.112]
[1761928734369,0.2289,3866.1,3866.0,9.112]
[1761928735177,3.21016368,3866.4,3866.0,9.112]
[1761928735675,3.21016368,3866.4,3866.0,9.244]
[1761928735873,3.21016368,3866.4,3866.3,0.2358]
[1761928736469,0.00236368,3866.4,3866.3,0.2358]
[1761928739577,3.21016368,3866.4,3866.3,0.2358]
[1761928739879,0.2289,3866.3,3866.2,4.19]
[1761928740480,3.21016368,3866.4,3866.3,0.2358]
[1761928741169,0.2289,3866.3,3866.2,4.19]
[1761928743577,0.2289,3866.3,3865.9,0.00239673]
[1761928743776,3.5696,3866.0,3865.9,0.00239673]
[1761928745569,12.17657976,3866.0,3865.0,1.822]
[1761928745770,3.2078,3865.3,3865.0,1.822]
[1761928746167,3.2078,3865.3,3864.8,9.098]
[1761928746168,0.1329,3865.0,3864.8,9.098]
[1761928746567,3.2078,3865.7,3865.6,0.2358]
[1761928747183,3.2078,3865.7,3865.6,9.3338]
[1761928748777,3.4367,3865.7,3865.5,9.099]
[1761928748982,3.4367,3865.7,3865.4,9.097]
[1761928749482,3.4367,3865.7,3865.1,9.096]
[1761928749483,0.3618,3865.5,3865.1,9.096]
[1761928750475,3.2078,3865.3,3865.1,9.096]
[1761928750675,0.2289,3865.1,3865.0,9.096]
[1761928751783,0.2289,3865.1,3864.8,0.00330714]
[1761928751784,3.2078,3865.3,3864.8,0.00330714]
[1761928754278,0.2289,3864.9,3864.8,0.00330714]
[1761928754678,3.4367,3864.9,3864.8,0.00330714]
[1761928754987,3.4367,3864.9,3863.8,3.2078]
[1761928754988,0.2227,3864.7,3863.8,3.2078]
[1761928755284,0.1394,3865.0,3863.8,3.2078]
[1761928755285,3.3472,3864.5,3863.8,3.2078]
[1761928755784,3.2078,3864.5,3863.8,3.67652051]
[1761928755984,3.3472,3864.5,3863.8,3.67652051]
[1761928756390,0.6089569,3864.4,3863.8,3.67652051]
[1761928756584,3.3472,3864.5,3863.8,3.21043051]
[1761928756786,3.3472,3864.5,3864.0,0.0416]
[1761928756987,3.2078,3864.5,3864.4,0.2313]
[1761928757181,3.81675315,3864.5,3864.4,0.2313]
[1761928757683,3.81675315,3864.5,3864.3,9.098]
[1761928757881,0.60895315,3864.4,3864.3,9.098]
[1761928758081,0.60895315,3864.4,3864.3,9.3225]
[1761928758278,3.3472,3865.0,3864.3,9.3225]
[1761928758584,0.60995595,3864.9,3864.8,0.2245]
[1761928758784,0.83955595,3864.9,3864.3,9.098]
[1761928758991,0.60995595,3864.8,3864.3,9.098]
[1761928759190,0.60995595,3864.7,3864.3,9.098]
[1761928759383,0.60995595,3864.6,3864.3,9.098]
[1761928759583,3.3472,3865.0,3864.5,0.2245]
[1761928759783,0.61055669,3864.9,3864.5,0.2245]
[1761928759984,0.61055669,3864.8,3864.5,0.2245]
[1761928760193,3.3472,3865.0,3864.7,0.2245]
[1761928760488,0.61115846,3864.9,3864.8,0.2245]
[1761928761288,0.61115846,3864.9,3864.8,0.69047]
[1761928762589,4.59546535,3865.9,3865.0,0.1282]
[1761928762894,0.61120912,3865.8,3865.3,0.46591]
[1761928763198,0.61120912,3865.7,3865.1,9.55893]
[1761928763388,0.61120912,3865.6,3865.5,0.2245]
[1761928764095,0.61120912,3865.6,3865.5,0.3527]
[1761928764986,0.61120912,3865.6,3865.5,0.2245]
[1761928765392,0.61120912,3865.6,3865.5,0.3527]
[1761928765991,0.61120912,3865.6,3865.5,0.81859]
[1761928766994,0.61120912,3865.6,3865.5,0.3527]
[1761928767191,0.61120912,3865.6,3865.5,0.2245]
[1761928768396,0.84080912,3865.6,3865.5,0.2245]
[1761928768895,0.61120912,3865.6,3865.5,0.69039]
[1761928769097,0.61120912,3865.6,3865.5,0.81859]
[1761928769398,0.61120912,3865.6,3865.5,0.2245]
[1761928769991,0.1349,3865.5,3865.4,6.643]
[1761928770193,0.97570912,3865.5,3865.4,6.643]
[1761928771294,0.3645,3865.0,3864.9,9.091]
[1761928771695,0.97570912,3865.0,3864.5,3.2078]
[1761928771894,0.2296,3864.6,3864.5,3.2078]
[1761928772298,3.3427,3865.5,3864.9,0.2245]
[1761928772495,0.61176282,3865.4,3864.9,0.69046]
[1761928772705,3.3427,3865.5,3865.3,0.2245]
[1761928772889,0.6117891,3865.4,3865.3,0.2245]
[1761928773891,0.6117891,3865.4,3865.3,0.69041]
[1761928775296,1.98403256,3866.5,3865.7,0.46586]
[1761928775297,4.59546535,3866.3,3865.7,0.46586]
[1761928775501,0.61216489,3866.2,3865.7,9.55686]
[1761928775692,0.61216489,3866.1,3865.7,9.091]
[1761928775891,0.61216489,3866.0,3865.7,9.091]
[1761928776199,0.61216489,3865.9,3865.8,0.2245]
[1761928776501,0.61216489,3865.9,3865.8,0.69035]
[1761928776699,0.61216489,3865.9,3865.8,3.89815]
[1761928779207,0.00236368,3866.4,3865.8,0.2245]
[1761928779400,0.6118448,3866.3,3865.8,0.69035]
[1761928779600,0.00236368,3866.4,3865.8,0.2245]
[1761928779601,0.6118448,3866.2,3865.8,0.2245]
[1761928779799,0.6118448,3866.1,3865.8,0.2245]
[1761928779999,0.7467448,3866.0,3865.8,0.69035]
[1761928780203,0.1349,3866.0,3865.8,0.69035]
[1761928780404,0.2296,3865.9,3865.5,0.1282]
[1761928780692,0.2296,3865.9,3865.7,0.46585]
[1761928780906,0.2296,3865.9,3865.8,0.46585]
[1761928781105,0.2296,3865.9,3865.8,0.69035]
[1761928781405,0.1349,3866.0,3865.8,0.69035]
[1761928783408,0.2296,3865.9,3865.6,9.55587]
[1761928783909,0.2296,3865.9,3865.7,0.46586]
[1761928784103,0.1349,3866.0,3865.8,0.2358]
[1761928784409,3.2078,3866.2,3866.1,0.2358]
[1761928784601,3.81971327,3866.2,3866.1,9.3258]
[1761928786003,3.81971327,3866.2,3866.1,9.79161]
[1761928786506,3.81971327,3866.2,3866.1,9.3258]
[1761928786909,4.04441327,3866.2,3865.5,0.1302]
[1761928787210,3.4325,3866.2,3866.1,0.2358]
[1761928787509,4.04476293,3866.2,3866.1,9.3248]
[1761928788504,0.2247,3865.9,3865.5,0.1302]
[1761928788697,0.1366,3866.0,3865.7,0.46586]
[1761928788902,0.2247,3865.8,3865.7,0.46586]
[1761928789605,0.2247,3865.7,3865.5,0.46588]
[1761928789804,0.2247,3865.7,3865.6,9.089]
[1761928790008,0.2247,3865.7,3865.6,9.3248]
[1761928790196,0.2247,3865.7,3865.6,9.089]
[1761928790508,0.2247,3865.7,3865.4,3.6737]
[1761928790810,0.2247,3865.7,3865.6,9.3248]
[1761928791403,0.2247,3865.7,3865.6,9.089]
[1761928792311,0.2247,3865.7,3865.6,9.79068]
[1761928792511,0.1366,3866.0,3865.6,9.79068]
[1761928792512,0.1366,3866.0,3865.6,9.089]
[1761928792813,0.61353372,3865.9,3865.6,9.089]
[1761928793004,0.61353372,3865.8,3865.6,9.089]
[1761928793205,0.1366,3866.0,3865.6,9.55487]
[1761928793410,0.2247,3865.7,3865.6,9.55488]
[1761928793612,0.2247,3865.7,3865.6,9.089]
[1761928794512,0.83851435,3865.7,3865.6,9.089]
[1761928795010,0.2247,3865.1,3865.0,0.2358]
[1761928795200,3.2078,3865.3,3865.0,0.2358]
[1761928795405,0.83851435,3865.2,3865.1,9.089]